fUST/lending_fUST_20250224
["ID","MTS","AMOUNT","RATE_DAILY","PERIOD"]
[354254767,1740367846873,-2002.97451718,0.00015589,2]
[354254768,1740367846883,-4166.9534,0.00015589,2]
[354254769,1740367846893,-604.27,0.00015589,2]
[354254770,1740367846902,-1135.39014787,0.00015589,2]
[354254771,1740367846911,-1420.38,0.00015589,2]
[354254772,1740367846920,-708.18818669,0.0001559,2]
[354254773,1740367846933,-151.0,0.000156,2]
[354254774,1740367846941,-598.30304584,0.00015675,2]
[354254775,1740367846950,-465.55281091,0.00015697,2]
[354254776,1740367846960,-151.0,0.000157,2]
[354254777,1740367846968,-598.30304584,0.00015775,2]
[354254778,1740367846977,-224.63957,0.00015775,2]
[354254779,1740367846986,-160.0,0.00015832,5]
[354254780,1740367846995,-151.0,0.00015832,2]
[354254781,1740367847005,-151.0,0.00015832,2]
[354254782,1740367847014,-151.0,0.00015832,2]
[354254783,1740367847023,-151.0,0.00015832,2]
[354254784,1740367847033,-551.0,0.00015848,2]
[354254785,1740367847043,-500.0,0.00015848,2]
[354254786,1740367847052,-598.30304584,0.00015875,2]
[354254787,1740367847062,-151.0,0.000159,2]
[354254788,1740367847071,-151.0,0.000159,2]
[354254789,1740367847081,-598.30304584,0.00015975,2]
[354254790,1740367847090,-1773.6661063,0.00016,2]
[354254791,1740367847102,-4130.5079017,0.00016,2]
[354254792,1740367847112,-708.18818669,0.00016008,2]
[354254793,1740367847121,-5018.98016093,0.0001601,2]
[354254794,1740367847131,-5000.0,0.00016013,2]
[354254795,1740367847140,-5000.0,0.00016013,2]
[354254796,1740367847150,-5000.0,0.00016013,2]
[354254797,1740367847160,-5000.0,0.00016013,2]
[354254798,1740367847170,-7605.31280814,0.00016018,2]
[354254799,1740367847187,-5000.0,0.00016018,2]
[354254800,1740367847198,-5000.0,0.00016018,2]
[354254801,1740367847208,-5000.0,0.00016018,2]
[354254802,1740367847218,-5011.72323937,0.00016018,2]
[354254803,1740367847229,-2600.28801414,0.00016018,2]
[354255455,1740368800337,202.175613,9.041e-05,2]
[354255498,1740369032346,-541.47894463,0.0001276,2]
[354255499,1740369032452,-13833.80283836,0.0001276,2]
[354255500,1740369032464,-753.54240958,0.0001276,2]
[354255501,1740369032507,-429.14,0.0001276,2]
[354255502,1740369032562,-2430.1275542,0.0001276,2]
[354255539,1740369038212,-6911.90825323,0.0001276,2]
[354255541,1740369038222,-300.0,0.00013656,2]
[354255543,1740369038231,-506.70384213,0.00013698,2]
[354255545,1740369038240,-502.35145182,0.00013698,2]
[354255547,1740369038250,-500.0,0.00013698,2]
[354255549,1740369038259,-561.93215732,0.00013698,2]
[354255551,1740369038268,-500.0,0.00013698,2]
[354255553,1740369038277,-500.0,0.00013698,2]
[354255555,1740369038286,-266.75724183,0.00013698,2]
[354255557,1740369038297,-500.0,0.00013698,2]
[354255559,1740369038306,-500.0,0.00013698,2]
[354255561,1740369038315,-500.0,0.00013698,2]
[354255563,1740369038325,-500.0,0.00013698,2]
[354255565,1740369038335,-335.07875271,0.00013698,2]
[354255567,1740369038344,-500.0,0.00013698,2]
[354255569,1740369038354,-500.0,0.00013698,2]
[354255571,1740369038363,-500.0,0.00013698,2]
[354255573,1740369038374,-500.0,0.00013698,2]
[354255576,1740369038385,-500.0,0.00013698,2]
[354255579,1740369038395,-500.0,0.00013698,2]
[354255582,1740369038405,-500.0,0.00013698,2]
[354255585,1740369038417,-500.0,0.00013698,2]
[354255587,1740369038426,-500.0,0.00013698,2]
[354255589,1740369038436,-191.37906272,0.00013698,2]
[354255591,1740369038445,-500.0,0.00013698,2]
[354255593,1740369038454,-500.0,0.00013698,2]
[354255595,1740369038463,-500.0,0.00013698,2]
[354255597,1740369038473,-500.0,0.00013698,2]
[354255599,1740369038482,-500.0,0.00013698,2]
[354255601,1740369038492,-500.0,0.00013698,2]
[354255603,1740369038501,-500.0,0.00013698,2]
[354255605,1740369038510,-500.0,0.00013698,2]
[354255607,1740369038519,-284.32746956,0.00013698,2]
[354255609,1740369038529,-500.0,0.00013698,2]
[354255611,1740369038538,-500.0,0.00013698,2]
[354255613,1740369038547,-500.0,0.00013698,2]
[354255615,1740369038556,-502.3460501,0.00013698,2]
[354255617,1740369038566,-502.24176998,0.00013698,2]
[354255619,1740369038575,-500.0,0.00013698,2]
[354255621,1740369038584,-500.0,0.00013698,2]
[354255623,1740369038593,-500.0,0.00013698,2]
[354255625,1740369038603,-67.01429797,0.00013698,2]
[354255627,1740369038615,-432.98570203,0.00013698,2]
[354255629,1740369038624,-133.74226635,0.00013698,2]
[354255631,1740369038635,-366.25773365,0.00013698,2]
[354255633,1740369038645,-500.0,0.00013698,2]
[354255635,1740369038654,-500.0,0.00013698,2]
[354255637,1740369038663,-500.0,0.00013698,2]
[354255639,1740369038677,-500.0,0.00013698,2]
[354255641,1740369038686,-372.67462371,0.00013698,2]
[354255643,1740369038696,-500.0,0.00013698,2]
[354255645,1740369038705,-500.0,0.00013698,2]
[354255647,1740369038715,-500.0,0.00013698,2]
[354255649,1740369038724,-500.0,0.00013698,2]
[354255651,1740369038734,-500.0,0.00013698,2]
[354255653,1740369038743,-500.0,0.00013698,2]
[354255655,1740369038753,-500.0,0.00013698,2]
[354255657,1740369038764,-500.0,0.00013698,2]
[354255659,1740369038773,-500.0,0.00013698,2]
[354255661,1740369038782,-184.88128693,0.00013698,2]
[354255663,1740369038791,-500.0,0.00013698,2]
[354255665,1740369038801,-500.0,0.00013698,2]
[354255667,1740369038810,-500.0,0.00013698,2]
[354255669,1740369038819,-500.0,0.00013698,2]
[354255671,1740369038829,-504.73725796,0.00013698,2]
[354255673,1740369038839,-500.0,0.00013698,2]
[354255675,1740369038849,-500.0,0.00013698,2]
[354255677,1740369038859,-500.0,0.00013698,2]
[354255679,1740369038869,-500.0,0.00013698,2]
[354255681,1740369038878,-500.0,0.00013698,2]
[354255683,1740369038888,-500.0,0.00013698,2]
[354255685,1740369038898,-500.0,0.00013698,2]
[354255687,1740369038907,-500.0,0.00013698,2]
[354255689,1740369038918,-500.0,0.00013698,2]
[354255691,1740369038928,-644.45170563,0.00013698,2]
[354255693,1740369038938,-500.0,0.00013698,2]
[354255695,1740369038948,-500.0,0.00013698,2]
[354255697,1740369038958,-500.0,0.00013698,2]
[354255699,1740369038967,-500.0,0.00013698,2]
[354255701,1740369038977,-500.0,0.00013698,2]
[354255703,1740369038986,-253.6368,0.00013698,2]
[354255705,1740369038995,-500.0,0.00013698,2]
[354255707,1740369039005,-500.0,0.00013698,2]
[354255709,1740369039015,-464.44657744,0.00013698,2]
[354255711,1740369039025,-175.20814449,0.00013698,2]
[354255713,1740369039034,-500.0,0.00013698,2]
[354255715,1740369039044,-500.0,0.00013698,2]
[354255717,1740369039053,-500.0,0.00013698,2]
[354255719,1740369039063,-500.0,0.00013698,2]
[354255721,1740369039072,-500.0,0.00013698,2]
[354255723,1740369039082,-500.0,0.00013698,2]
[354255725,1740369039091,-500.0,0.00013698,2]
[354255727,1740369039100,-500.0,0.00013698,2]
[354255729,1740369039109,-500.0,0.00013698,2]
[354255731,1740369039119,-507.81304366,0.00013698,2]
[354255733,1740369039128,-500.0,0.00013698,2]
[354255735,1740369039138,-500.0,0.00013698,2]
[354255737,1740369039147,-500.0,0.00013698,2]
[354255739,1740369039156,-500.0,0.00013698,2]
[354255741,1740369039167,-500.0,0.00013698,2]
[354255743,1740369039177,-500.0,0.00013698,2]
[354255745,1740369039186,-500.0,0.00013698,2]
[354255747,1740369039195,-500.0,0.00013698,2]
[354255749,1740369039204,-500.0,0.00013698,2]
[354255751,1740369039214,-500.0,0.00013698,2]
[354255753,1740369039224,-500.0,0.00013698,2]
[354255755,1740369039233,-500.0,0.00013698,2]
[354255757,1740369039243,-500.0,0.00013698,2]
[354255759,1740369039252,-500.0,0.00013698,2]
[354255761,1740369039262,-500.0,0.00013698,2]
[354255763,1740369039271,-500.0,0.00013698,2]
[354255766,1740369039281,-500.0,0.00013698,2]
[354255767,1740369039290,-2746.44,0.00013698,2]
[354255770,1740369039300,-685.74,0.00013698,2]
[354255772,1740369039309,-500.0,0.00013698,2]
[354255774,1740369039319,-500.0,0.00013698,2]
[354255776,1740369039328,-500.0,0.00013698,2]
[354255778,1740369039337,-500.0,0.00013698,2]
[354255780,1740369039346,-500.0,0.00013698,2]
[354255782,1740369039355,-500.0,0.00013698,2]
[354255783,1740369039364,-500.0,0.00013698,2]
[354255786,1740369039374,-500.0,0.00013698,2]
[354255788,1740369039383,-500.0,0.00013698,2]
[354255790,1740369039392,-500.0,0.00013698,2]
[354255791,1740369039401,-500.0,0.00013698,2]
[354255793,1740369039411,-572.05,0.00013698,2]
[354255795,1740369039423,-500.0,0.00013698,2]
[354255797,1740369039432,-500.0,0.00013698,2]
[354255799,1740369039441,-344.52,0.00013698,2]
[354255801,1740369039450,-500.0,0.00013698,2]
[354255803,1740369039459,-500.0,0.00013698,2]
[354255805,1740369039468,-500.0,0.00013698,2]
[354255807,1740369039477,-500.0,0.00013698,2]
[354255809,1740369039487,-500.0,0.00013698,2]
[354255811,1740369039496,-500.0,0.00013698,2]
[354255813,1740369039505,-500.0,0.00013698,2]
[354255815,1740369039514,-500.0,0.00013698,2]
[354255817,1740369039523,-500.0,0.00013698,2]
[354255819,1740369039532,-500.0,0.00013698,2]
[354255821,1740369039542,-500.0,0.00013698,2]
[354255823,1740369039551,-500.0,0.00013698,2]
[354255825,1740369039560,-500.0,0.00013698,2]
[354255827,1740369039569,-500.0,0.00013698,2]
[354255829,1740369039579,-500.0,0.00013698,2]
[354255831,1740369039589,-500.0,0.00013698,2]
[354255833,1740369039598,-500.0,0.00013698,2]
[354255835,1740369039608,-500.0,0.00013698,2]
[354255837,1740369039617,-310.82413492,0.00013698,2]
[354255839,1740369039626,-212.903224,0.00013699,2]
[354255841,1740369039635,-183.957467,0.00013699,2]
[354255843,1740369039644,-496.71,0.0001378,2]
[354255845,1740369039653,-500.0,0.0001378,2]
[354255847,1740369039664,-500.0,0.0001378,2]
[354255849,1740369039677,-500.0,0.0001378,2]
[354255851,1740369039687,-500.0,0.0001378,2]
[354255853,1740369039696,-617.99568256,0.0001378,2]
[354255855,1740369039707,-505.13654239,0.0001378,2]
[354255857,1740369039716,-500.0,0.0001378,2]
[354255859,1740369039725,-500.0,0.0001378,2]
[354255861,1740369039734,-500.0,0.0001378,2]
[354255863,1740369039745,-358.28638197,0.0001378,2]
[354255866,1740369039754,-500.0,0.0001378,2]
[354255868,1740369039764,-500.0,0.0001378,2]
[354255870,1740369039772,-500.0,0.0001378,2]
[354255872,1740369039782,-500.0,0.0001378,2]
[354255874,1740369039791,-622.44305527,0.0001378,2]
[354255876,1740369039800,-504.41,0.0001378,2]
[354255878,1740369039809,-500.0,0.0001378,2]
[354255880,1740369039818,-500.0,0.0001378,2]
[354255881,1740369039828,-500.0,0.0001378,2]
[354255884,1740369039838,-500.0,0.0001378,2]
[354255886,1740369039847,-500.0,0.0001378,2]
[354255889,1740369039857,-395.70765333,0.0001378,2]
[354255893,1740369039867,-500.0,0.0001378,2]
[354255895,1740369039876,-500.0,0.0001378,2]
[354255898,1740369039886,-500.0,0.0001378,2]
[354255901,1740369039895,-500.0,0.0001378,2]
[354255906,1740369039904,-500.0,0.0001378,2]
[354255909,1740369039913,-500.0,0.0001378,2]
[354255911,1740369039926,-500.0,0.0001378,2]
[354255913,1740369039935,-500.0,0.0001378,2]
[354255916,1740369039944,-2746.44,0.0001378,2]
[354255918,1740369039953,-685.74,0.0001378,2]
[354255920,1740369039963,-500.0,0.0001378,2]
[354255922,1740369039972,-500.0,0.0001378,2]
[354255924,1740369039982,-500.0,0.0001378,2]
[354255926,1740369039991,-500.0,0.0001378,2]
[354255928,1740369040000,-500.0,0.0001378,2]
[354255930,1740369040009,-500.0,0.0001378,2]
[354255932,1740369040019,-500.0,0.0001378,2]
[354255934,1740369040028,-500.0,0.0001378,2]
[354255936,1740369040037,-500.0,0.0001378,2]
[354255938,1740369040047,-500.0,0.0001378,2]
[354255940,1740369040056,-572.05,0.0001378,2]
[354255942,1740369040065,-500.0,0.0001378,2]
[354255944,1740369040074,-500.0,0.0001378,2]
[354255946,1740369040083,-500.0,0.0001378,2]
[354255948,1740369040092,-500.0,0.0001378,2]
[354255950,1740369040101,-500.0,0.0001378,2]
[354255952,1740369040111,-500.0,0.0001378,2]
[354255954,1740369040120,-500.0,0.0001378,2]
[354255956,1740369040130,-500.0,0.0001378,2]
[354255958,1740369040139,-500.0,0.0001378,2]
[354255960,1740369040148,-500.0,0.0001378,2]
[354255962,1740369040158,-500.0,0.0001378,2]
[354255964,1740369040168,-185.01949623,0.0001378,2]
[354255966,1740369040178,-500.0,0.0001378,2]
[354255968,1740369040187,-500.0,0.0001378,2]
[354255970,1740369040197,-500.0,0.0001378,2]
[354255972,1740369040207,-500.0,0.0001378,2]
[354255973,1740369040217,-500.0,0.0001378,2]
[354255975,1740369040226,-500.0,0.0001378,2]
[354255977,1740369040236,-633.8,0.00013863,2]
[354255980,1740369040245,-500.0,0.00013863,2]
[354255982,1740369040256,-500.0,0.00013863,2]
[354255984,1740369040265,-164.84569804,0.00013863,2]
[354255985,1740369040275,-608.94,0.00013863,2]
[354255997,1740369040368,-500.0,0.00013863,2]
[354255999,1740369040378,-500.0,0.00013863,2]
[354256001,1740369040387,-500.0,0.00013863,2]
[354256003,1740369040398,-500.0,0.00013863,2]
[354256004,1740369040407,-500.0,0.00013863,2]
[354256007,1740369040417,-500.0,0.00013863,2]
[354256009,1740369040428,-500.0,0.00013863,2]
[354256011,1740369040437,-500.0,0.00013863,2]
[354256013,1740369040446,-633.93,0.00013863,2]
[354256014,1740369040456,-500.0,0.00013863,2]
[354256017,1740369040465,-500.0,0.00013863,2]
[354256018,1740369040474,-181.32,0.00013863,2]
[354256020,1740369040483,-2746.44,0.00013863,2]
[354256023,1740369040493,-685.74,0.00013863,2]
[354256025,1740369040502,-500.0,0.00013863,2]
[354256027,1740369040511,-500.0,0.00013863,2]
[354256029,1740369040520,-333.36,0.00013863,2]
[354256030,1740369040529,-500.0,0.00013863,2]
[354256032,1740369040538,-500.0,0.00013863,2]
[354256034,1740369040547,-500.0,0.00013863,2]
[354256037,1740369040557,-500.0,0.00013863,2]
[354256039,1740369040567,-500.0,0.00013863,2]
[354256040,1740369040576,-572.05,0.00013863,2]
[354256043,1740369040585,-500.0,0.00013863,2]
[354256045,1740369040594,-500.0,0.00013863,2]
[354256047,1740369040603,-500.0,0.00013863,2]
[354256048,1740369040614,-500.0,0.00013863,2]
[354256050,1740369040623,-500.0,0.00013863,2]
[354256053,1740369040633,-500.0,0.00013863,2]
[354256055,1740369040642,-500.0,0.00013863,2]
[354256058,1740369040651,-500.0,0.00013863,2]
[354256060,1740369040660,-501.14996702,0.00013895,2]
[354256061,1740369040673,-500.0,0.00013945,2]
[354256063,1740369040682,-500.0,0.00013945,2]
[354256065,1740369040691,-209.3,0.00013945,2]
[354256067,1740369040700,-500.0,0.00013945,2]
[354256070,1740369040710,-500.0,0.00013945,2]
[354256072,1740369040720,-500.0,0.00013945,2]
[354256074,1740369040729,-500.0,0.00013945,2]
[354256076,1740369040739,-500.0,0.00013945,2]
[354256078,1740369040749,-2746.44,0.00013945,2]
[354256080,1740369040758,-685.74,0.00013945,2]
[354256082,1740369040767,-500.0,0.00013945,2]
[354256084,1740369040777,-186.12,0.00013945,2]
[354256086,1740369040785,-500.0,0.00013945,2]
[354256087,1740369040794,-500.0,0.00013945,2]
[354256088,1740369040803,-500.0,0.00013945,2]
[354256089,1740369040812,-500.0,0.00013945,2]
[354256090,1740369040821,-560.56,0.00013945,2]
[354256091,1740369040830,-572.05,0.00013945,2]
[354256092,1740369040839,-500.0,0.00013945,2]
[354256093,1740369040848,-500.0,0.00013945,2]
[354256094,1740369040857,-500.0,0.00013945,2]
[354256095,1740369040866,-343.24368693,0.00013945,2]
[354256096,1740369040875,-500.0,0.00013945,2]
[354256097,1740369040884,-500.0,0.00013945,2]
[354256098,1740369040893,-152.0,0.0001396,2]
[354256099,1740369040902,-1317.58862524,0.00014,2]
[354256100,1740369040911,-500.0,0.00014,2]
[354256101,1740369040921,-241.51,0.00014027,2]
[354256102,1740369040931,-500.0,0.00014027,2]
[354256103,1740369040940,-500.0,0.00014027,2]
[354256104,1740369040949,-500.0,0.00014027,2]
[354256105,1740369040960,-500.0,0.00014027,2]
[354256106,1740369040969,-203.24,0.00014027,2]
[354256107,1740369040978,-2746.44,0.00014027,2]
[354256108,1740369040987,-685.74,0.00014027,2]
[354256109,1740369040996,-500.0,0.00014027,2]
[354256111,1740369041006,-403.6,0.00014027,2]
[354256113,1740369041015,-500.0,0.00014027,2]
[354256115,1740369041024,-500.0,0.00014027,2]
[354256117,1740369041033,-500.0,0.00014027,2]
[354256119,1740369041042,-572.05,0.00014027,2]
[354256121,1740369041051,-500.0,0.00014027,2]
[354256123,1740369041060,-500.0,0.00014027,2]
[354256125,1740369041069,-500.0,0.00014027,2]
[354256127,1740369041079,-161.75,0.00014027,2]
[354256129,1740369041088,-500.0,0.00014027,2]
[354256131,1740369041097,-500.0,0.00014109,2]
[354256133,1740369041106,-425.32,0.00014109,2]
[354256135,1740369041116,-588.11,0.00014109,2]
[354256137,1740369041125,-500.0,0.00014109,2]
[354256139,1740369041134,-2746.44,0.00014109,2]
[354256141,1740369041144,-685.74,0.00014109,2]
[354256143,1740369041154,-500.0,0.00014109,2]
[354256145,1740369041163,-500.0,0.00014109,2]
[354256147,1740369041174,-251.62,0.00014109,2]
[354256149,1740369041183,-500.0,0.00014109,2]
[354256151,1740369041194,-572.05,0.00014109,2]
[354256153,1740369041203,-500.0,0.00014109,2]
[354256155,1740369041213,-500.0,0.00014109,2]
[354256157,1740369041222,-500.0,0.00014191,2]
[354256159,1740369041231,-500.0,0.00014191,2]
[354256162,1740369041241,-2746.44,0.00014191,2]
[354256164,1740369041250,-685.74,0.00014191,2]
[354256166,1740369041260,-500.0,0.00014191,2]
[354256168,1740369041269,-500.0,0.00014191,2]
[354256170,1740369041278,-500.0,0.00014191,2]
[354256172,1740369041287,-572.05,0.00014191,2]
[354256174,1740369041296,-500.0,0.00014191,2]
[354256176,1740369041306,-500.0,0.00014191,2]
[354256178,1740369041315,-259.91996506,0.00014272,2]
[354256180,1740369041325,-485.43667538,0.00014272,2]
[354256182,1740369041335,-500.0,0.00014273,2]
[354256184,1740369041345,-185.18,0.00014273,2]
[354256186,1740369041354,-2746.44,0.00014273,2]
[354256188,1740369041364,-685.74,0.00014273,2]
[354256190,1740369041373,-500.0,0.00014273,2]
[354256191,1740369041383,-500.0,0.00014273,2]
[354256193,1740369041392,-572.05,0.00014273,2]
[354256196,1740369041404,-500.0,0.00014273,2]
[354256198,1740369041417,-500.0,0.00014273,2]
[354256201,1740369041431,-19601.91606613,0.00014328,2]
[354256203,1740369041443,-500.0,0.00014356,2]
[354256205,1740369041455,-2746.44,0.00014356,2]
[354256208,1740369041467,-685.74,0.00014356,2]
[354256210,1740369041477,-500.0,0.00014356,2]
[354256212,1740369041488,-500.0,0.00014356,2]
[354256214,1740369041501,-572.05,0.00014356,2]
[354256217,1740369041512,-500.0,0.00014356,2]
[354256219,1740369041523,-328.42461037,0.00014356,2]
[354256222,1740369041541,-171.57538963,0.00014356,2]
[354256224,1740369041553,-133.25433965,0.00014438,2]
[354256226,1740369041568,-366.74566035,0.00014438,2]
[354256229,1740369041579,-94.26502616,0.00014438,2]
[354256231,1740369041592,-429.17778591,0.00014438,2]
[354256240,1740369041662,-450.00742457,0.00014438,2]
[354256242,1740369041679,-1772.98976336,0.00014438,2]
[354256244,1740369041690,-685.74,0.00014438,2]
[354256247,1740369041701,-500.0,0.00014438,2]
[354256249,1740369041715,-500.0,0.00014438,2]
[354256251,1740369041727,-572.05,0.00014438,2]
[354256254,1740369041738,-500.0,0.00014438,2]
[354256256,1740369041749,-500.0,0.00014438,2]
[354256258,1740369041760,-396.0,0.00014483,2]
[354256260,1740369041770,-985.21,0.000145,2]
[354256262,1740369041779,-500.0,0.0001452,2]
[354256264,1740369041790,-2746.44,0.0001452,2]
[354256266,1740369041801,-685.74,0.0001452,2]
[354256269,1740369041811,-500.0,0.0001452,2]
[354256271,1740369041822,-500.0,0.0001452,2]
[354256273,1740369041834,-572.05,0.0001452,2]
[354256275,1740369041845,-500.0,0.0001452,2]
[354256278,1740369041858,-500.0,0.0001452,2]
[354256280,1740369041869,-500.0,0.00014548,2]
[354256282,1740369041881,-500.0,0.00014602,2]
[354256285,1740369041893,-2746.44,0.00014602,2]
[354256287,1740369041903,-685.74,0.00014602,2]
[354256289,1740369041914,-389.96,0.00014602,2]
[354256291,1740369041927,-500.0,0.00014602,2]
[354256293,1740369041938,-572.05,0.00014602,2]
[354256295,1740369041948,-384.01,0.00014602,2]
[354256297,1740369041958,-500.0,0.00014602,2]
[354256299,1740369041968,-500.0,0.00014684,2]
[354256302,1740369041978,-2746.44,0.00014684,2]
[354256304,1740369041989,-685.74,0.00014684,2]
[354256306,1740369042001,-572.05,0.00014684,2]
[354256308,1740369042013,-500.0,0.00014684,2]
[354256310,1740369042025,-500.0,0.00014767,2]
[354256313,1740369042037,-2746.44,0.00014767,2]
[354256315,1740369042047,-685.74,0.00014767,2]
[354256317,1740369042057,-572.05,0.00014767,2]
[354256319,1740369042068,-500.0,0.00014849,2]
[354256321,1740369042079,-2746.44,0.00014849,2]
[354256324,1740369042090,-685.74,0.00014849,2]
[354256326,1740369042103,-572.05,0.00014849,2]
[354256328,1740369042114,-22976.73704737,0.000149,2]
[354256331,1740369042128,-1182.99661046,0.000149,2]
[354256333,1740369042141,-278.70729249,0.000149,2]
[354256335,1740369042155,-60696.37032568,0.000149,2]
[354256337,1740369042165,-500.0,0.00014931,2]
[354256340,1740369042180,-2746.44,0.00014931,2]
[354256342,1740369042191,-685.74,0.00014931,2]
[354256344,1740369042202,-572.05,0.00014931,2]
[354256346,1740369042213,-151.0,0.00014931,2]
[354256348,1740369042224,-151.0,0.00014931,2]
[354256350,1740369042235,-151.493971,0.00014931,2]
[354256352,1740369042245,-151.0,0.00014931,2]
[354256354,1740369042256,-151.0,0.00014931,2]
[354256357,1740369042266,-160.990517,0.00014931,2]
[354256359,1740369042276,-160.990517,0.00014931,2]
[354256361,1740369042287,-151.0,0.00014931,2]
[354256363,1740369042297,-151.0,0.00014931,2]
[354256365,1740369042308,-151.0,0.00014931,2]
[354256367,1740369042319,-2200.0,0.00014952,2]
[354256369,1740369042330,-420.0,0.00014966,2]
[354256371,1740369042341,-500.0,0.00015013,2]
[354256374,1740369042352,-2746.44,0.00015013,2]
[354256376,1740369042363,-685.74,0.00015013,2]
[354256378,1740369042374,-572.05,0.00015013,2]
[354256380,1740369042384,-500.0,0.00015095,2]
[354256382,1740369042395,-2746.44,0.00015095,2]
[354256384,1740369042405,-685.74,0.00015095,2]
[354256386,1740369042416,-572.05,0.00015095,2]
[354256388,1740369042430,-28378.2704253,0.00015168,2]
[354256391,1740369042440,-500.0,0.00015178,2]
[354256393,1740369042451,-2746.44,0.00015178,2]
[354256395,1740369042462,-685.74,0.00015178,2]
[354256397,1740369042472,-572.05,0.00015178,2]
[354256399,1740369042483,-500.0,0.0001526,2]
[354256401,1740369042494,-2746.44,0.0001526,2]
[354256404,1740369042505,-685.74,0.0001526,2]
[354256406,1740369042515,-572.05,0.0001526,2]
[354256408,1740369042524,-500.0,0.00015342,2]
[354256410,1740369042534,-2746.44,0.00015342,2]
[354256412,1740369042543,-685.74,0.00015342,2]
[354256414,1740369042553,-572.05,0.00015342,2]
[354256416,1740369042562,-556.42183263,0.00015363,2]
[354256418,1740369042571,-500.0,0.00015424,2]
[354256420,1740369042580,-2746.44,0.00015424,2]
[354256422,1740369042589,-685.74,0.00015424,2]
[354256424,1740369042599,-572.05,0.00015424,2]
[354256428,1740369042717,-556.42183263,0.00015463,2]
[354256429,1740369042731,-3944.30441781,0.000155,2]
[354256431,1740369042740,-587.4,0.00015506,2]
[354256433,1740369042751,-2746.44,0.00015506,2]
[354256435,1740369042761,-685.74,0.00015506,2]
[354256437,1740369042770,-572.05,0.00015506,2]
[354256439,1740369042779,-556.42183263,0.00015563,2]
[354256441,1740369042788,-2746.5598,0.00015589,2]
[354256443,1740369042797,-685.84999999,0.00015589,2]
[354256445,1740369042807,-572.13,0.00015589,2]
[354256447,1740369042816,-556.42183263,0.00015663,2]
[354256449,1740369042825,-878.3581519,0.00015697,2]
[354256451,1740369042834,-3000.000001,0.000157,2]
[354256453,1740369042843,-556.42183263,0.00015763,2]
[354256455,1740369042852,-202.175613,0.00015775,2]
[354256456,1740369042861,-151.0,0.000158,2]
[354256458,1740369042870,-556.42183263,0.00015863,2]
[354256460,1740369042879,-556.42183263,0.00015963,2]
[354256463,1740369042890,-151.0,0.00016,2]
[354256465,1740369042899,-217.67377512,0.00016017,2]
[354256468,1740369042908,-151.1169008,0.00016017,2]
[354256472,1740369042918,-1840.41931839,0.00016018,2]
[354256476,1740369042928,-352.97908196,0.00016018,2]
[354256480,1740369042937,-317.4455544,0.00016018,2]
[354256484,1740369042947,-151.0,0.00016018,2]
[354256489,1740369042956,-151.0,0.00016025,2]
[354256496,1740369042965,-151.0,0.00016025,2]
[354256501,1740369042975,-233.316793,0.00016025,2]